bitfinex/quotes_SOLUSD_20220210
["timestamp","ask_amount","ask_price","bid_price","bid_amount"]
[1644508270273,13.2918,112.97,112.83,10.67]
[1644508270274,4.428,112.96,112.83,10.67]
[1644508270477,17.32922154,112.96,112.84,46.5879733]
[1644508270873,2.23122154,112.95,112.79,15.098]
[1644508271072,4.429,112.94,112.79,21.098]
[1644508271275,13.2976,112.92,112.79,21.098]
[1644508271672,2.23122154,112.93,112.79,15.098]
[1644508271973,4.43,112.92,112.8,41.41995502]
[1644508272172,27.8813,112.96,112.81,10.67]
[1644508272373,23.4513,112.96,112.82,36.48327677]
[1644508272576,27.8803,112.96,112.82,36.48327677]
[1644508272979,27.8803,112.96,112.82,47.15327677]
[1644508273776,41.1722,112.96,112.82,60.44457677]
[1644508273975,2.23122154,112.95,112.82,60.44457677]
[1644508274275,4.429,112.94,112.82,47.15327677]
[1644508274881,4.429,112.95,112.82,47.15327677]
[1644508275082,23.4513,112.96,112.82,47.15327677]
[1644508275279,23.4513,112.96,112.82,47.40327677]
[1644508275479,50.8717,112.98,112.82,53.40327677]
[1644508275677,50.8717,112.98,112.84,39.54776411]
[1644508275876,46.4427,112.98,112.84,50.46776411]
[1644508276078,22.9508,112.98,112.84,65.44177283]
[1644508276279,22.9508,112.98,112.84,71.44177283]
[1644508276481,22.9508,112.98,112.84,69.50716411]
[1644508276901,13.2905,112.97,112.84,63.50716411]
[1644508277103,19.94972154,112.97,112.84,63.50716411]
[1644508277303,19.94972154,112.97,112.84,50.21776411]
[1644508277601,2.23122154,112.96,112.8,4.428]
[1644508277800,2.23122154,112.96,112.81,10.67]
[1644508277801,4.429,112.95,112.81,10.67]
[1644508278206,2.23122154,112.94,112.81,10.67]
[1644508278502,2.23122154,112.96,112.82,44.9945108]
[1644508279305,13.2963,112.92,112.82,44.9945108]
[1644508279803,4.429,112.91,112.82,44.9945108]
[1644508280004,13.2963,112.92,112.82,44.9945108]
[1644508281203,13.2941,112.94,112.82,44.9945108]
[1644508281404,4.429,112.96,112.82,44.9945108]
[1644508281603,47.7416,112.97,112.84,39.74913833]
[1644508281804,4.428,112.96,112.84,39.74913833]
[1644508282403,13.2935,112.94,112.84,39.74913833]
[1644508283209,2.23122154,112.94,112.8,10.67]
[1644508283406,4.429,112.93,112.8,10.67]
[1644508284107,4.429,112.93,112.81,38.71109843]
[1644508284308,2.23122154,112.96,112.83,40.7332587]
[1644508284508,25.18202154,112.98,112.84,10.67]
[1644508284707,29.61002154,112.98,112.85,46.1476941]
[1644508284908,22.9508,112.98,112.85,56.8176941]
[1644508285310,49.9947,113.01,112.86,4.428]
[1644508285513,4.426,112.99,112.87,44.97157886]
[1644508285714,50.95542154,113.0,112.87,44.97157886]
[1644508286709,13.2896,112.97,112.87,44.97157886]
[1644508287311,44.2982,113.0,112.87,45.22157886]
[1644508287512,6.93233467,113.02,112.88,10.67]
[1644508287716,13.2831,113.03,112.89,43.6650349]
[1644508287914,4.426,113.05,112.9,10.67]
[1644508288113,2.50633467,113.08,112.92,0.31727978]
[1644508288315,2.50633467,113.11,112.93,10.67]
[1644508288514,2.50633467,113.11,112.96,13.2732]
[1644508288711,6.92933467,113.1,112.97,56.99594124]
[1644508288915,13.2768,113.08,112.97,10.67]
[1644508289115,13.2768,113.08,112.94,1.67816087]
[1644508289116,15.78313467,113.08,112.94,10.67]
[1644508289315,9.16906014,113.09,112.94,10.67]
[1644508289316,9.44517327,113.07,112.94,10.67]
[1644508289514,4.73755621,113.07,112.94,10.67]
[1644508289715,11.68331377,113.06,112.94,10.67]
[1644508289915,9.16155621,113.06,112.95,47.40258893]
[1644508290117,4.73755621,113.06,112.94,10.67]
[1644508290316,13.2815,113.04,112.94,10.67]
[1644508290718,17.7065,113.04,112.94,10.67]
[1644508290919,13.2815,113.04,112.94,10.67]
[1644508291115,13.2815,113.04,112.95,35.19604728]
[1644508291516,13.2797,113.06,112.95,35.19604728]
[1644508291715,13.2797,113.06,112.94,10.67]
[1644508292115,2.23122154,113.05,112.94,10.67]
[1644508292316,4.424,113.04,112.94,10.67]
[1644508292515,4.424,113.04,112.91,10.67]
[1644508292715,2.23122154,113.03,112.91,10.67]
[1644508292915,2.23122154,113.03,112.92,41.21882004]
[1644508293117,13.2833,113.03,112.92,41.21882004]
[1644508293315,13.2833,113.03,112.91,10.67]
[1644508293520,4.425,113.02,112.87,10.67]
[1644508293719,6.65622154,113.02,112.84,10.67]
[1644508293915,19.83255621,113.02,112.84,10.67]
[1644508294117,2.23122154,113.01,112.84,10.67]
[1644508294315,2.50633467,113.02,112.86,90.17]
[1644508294519,76.56104271,113.05,112.87,53.21784285]
[1644508294520,75.30553467,113.05,112.87,53.21784285]
[1644508294719,72.7992,113.05,112.87,82.26228592]
[1644508294921,75.30553467,113.05,112.87,88.26228592]
[1644508295120,5.0239114,113.04,112.87,72.49964285]
[1644508295320,4.426,113.03,112.87,72.74964285]
[1644508295520,4.426,113.03,112.87,72.49964285]
[1644508295722,4.426,113.03,112.88,1.67816087]
[1644508296025,4.426,113.03,112.91,46.8998246]
[1644508296219,17.7085,113.03,112.91,57.5698246]
[1644508297219,18.96693448,113.03,112.91,57.5698246]
[1644508297620,18.96693448,113.03,112.91,76.8513246]
[1644508297923,1.25843448,113.03,112.91,63.5698246]
[1644508298221,1.25843448,113.02,112.91,57.5698246]
[1644508298820,14.54093448,113.03,112.91,57.5698246]
[1644508299021,18.96593448,113.03,112.91,57.5698246]
[1644508299422,1.25843448,113.02,112.91,57.5698246]
[1644508300021,1.25843448,113.02,112.91,72.52938547]
[1644508300222,1.25843448,113.03,112.91,78.52938547]
[1644508300424,1.25843448,113.03,112.91,57.5698246]
[1644508300823,1.25843448,113.02,112.91,57.5698246]
[1644508301024,13.2847,113.01,112.91,57.5698246]
[1644508301425,13.2847,113.01,112.91,10.67]
[1644508301624,4.426,113.0,112.91,10.67]
[1644508302024,1.25843448,112.99,112.91,10.67]
[1644508302223,1.25843448,112.99,112.86,10.67]
[1644508302524,1.25843448,112.97,112.86,47.17945376]
[1644508303327,13.2928,112.94,112.86,47.17945376]
[1644508303928,13.2928,112.94,112.86,10.67]
[1644508304829,13.2928,112.94,112.85,4.426]
[1644508305029,13.2928,112.94,112.86,52.69483253]
[1644508305230,13.2928,112.94,112.86,6.0]
[1644508305429,1.25843448,112.97,112.86,6.0]
[1644508305628,45.56483448,112.98,112.86,6.0]
[1644508305828,45.56483448,112.98,112.84,6.0]
[1644508305829,49.99083448,112.98,112.84,6.0]
[1644508306028,45.56483448,112.98,112.86,10.67]
[1644508306232,45.56483448,112.98,112.87,46.37552908]
[1644508306629,13.2898,112.96,112.87,52.37552908]
[1644508306829,4.428,112.97,112.87,46.37552908]
[1644508307028,5.68643448,112.97,112.87,46.37552908]
[1644508307530,1.25843448,112.97,112.87,46.37552908]
[1644508307732,14.54533448,112.99,112.89,39.32573905]
[1644508307932,14.54533448,112.99,112.89,49.49573905]
[1644508308132,13.2869,112.99,112.89,49.49573905]
[1644508308834,14.54533448,112.99,112.89,49.49573905]
[1644508310034,13.2869,112.99,112.89,49.49573905]
[1644508310636,14.54533448,112.99,112.89,49.49573905]
[1644508311637,1.25843448,113.0,112.89,49.49573905]
[1644508312937,14.54253448,113.0,112.89,63.02993905]
[1644508313138,14.54253448,113.0,112.89,62.77993905]
[1644508313338,14.54253448,113.0,112.89,63.02993905]
[1644508314746,1.25843448,113.01,112.9,1.67578642]
[1644508314948,1.25843448,113.03,112.93,13.2785]
[1644508315141,1.25843448,113.03,112.94,52.50859914]
[1644508315343,1.25843448,113.03,112.94,63.18359914]
[1644508315542,1.25843448,113.04,112.94,58.75859914]
[1644508315743,1.25843448,113.03,112.94,10.67]
[1644508315944,1.25843448,113.03,112.9,23.9156]
[1644508316142,1.25843448,113.01,112.88,4.425]
[1644508316343,1.25843448,112.99,112.88,4.425]
[1644508316645,1.25843448,112.98,112.88,10.67]
[1644508316842,1.25843448,112.97,112.88,10.67]
[1644508317042,13.2881,112.96,112.86,10.67]
[1644508317242,5.68643448,112.96,112.83,10.67]
[1644508317442,1.25843448,112.95,112.83,10.67]
[1644508317643,4.429,112.94,112.83,10.67]
[1644508317970,4.429,112.94,112.84,48.23095501]
[1644508318148,4.429,112.94,112.81,10.67]
[1644508318347,1.25843448,112.93,112.79,124.994]
[1644508318548,1.25843448,112.91,112.79,124.994]
[1644508318748,1.25843448,112.91,112.79,124.97]
[1644508318947,4.43,112.9,112.79,124.97]
[1644508319151,13.2996,112.86,112.8,34.85965549]
[1644508320248,44.3339,112.89,112.8,34.85965549]
[1644508321249,44.3225,112.91,112.8,34.85965549]
[1644508321450,51.85423448,112.92,112.8,34.85965549]
[1644508321451,4.43,112.9,112.8,36.53544191]
[1644508321657,46.1658,112.92,112.82,47.77857287]
[1644508321853,1.25843448,112.93,112.82,58.44857287]
[1644508322053,5.68743448,112.96,112.83,1.67578642]
[1644508322254,1.25843448,112.98,112.84,48.68521658]
[1644508322453,1.25843448,112.98,112.84,62.76969878]
[1644508322654,1.25843448,112.98,112.85,1.67578642]
[1644508322855,70.86263448,112.99,112.86,48.31940406]
[1644508323054,75.28863448,112.99,112.86,48.31940406]
[1644508323255,5.68443448,112.98,112.86,48.31940406]
[1644508323454,13.2903,112.94,112.86,48.31940406]
[1644508324555,49.99203448,112.96,112.86,37.64940406]
[1644508324754,45.56403448,112.96,112.86,37.64940406]
[1644508325254,44.3056,112.96,112.86,37.64940406]
[1644508325680,13.2912,112.93,112.86,37.64940406]
[1644508326984,13.2923,112.92,112.86,37.64940406]
[1644508328689,13.2909,112.94,112.86,37.64940406]
[1644508328888,13.2909,112.94,112.86,43.64940406]
[1644508329095,13.2909,112.94,112.86,37.64940406]
[1644508329295,44.3099,112.95,112.82,28.5142]
[1644508329498,4.429,112.95,112.82,10.67]
[1644508329795,13.2971,112.88,112.79,16.34579193]
[1644508329996,13.2971,112.88,112.79,11.89279193]
[1644508330299,44.3257,112.91,112.8,44.75160221]
[1644508331695,13.2956,112.9,112.8,58.04670221]
[1644508333397,44.3257,112.91,112.8,44.75160221]
[1644508333799,5.68943448,112.93,112.8,63.09738863]
[1644508333999,4.431,112.93,112.8,78.75117595]
[1644508334800,13.2956,112.9,112.8,92.04617595]
[1644508334999,71.40073448,112.94,112.8,55.42160221]
[1644508335201,1.25843448,112.93,112.8,55.42160221]
[1644508335400,4.43,112.92,112.8,55.42160221]
[1644508335600,4.43,112.92,112.8,44.75160221]
[1644508335800,13.2972,112.88,112.8,44.75160221]
[1644508336002,4.43,112.92,112.77,48.4943]
[1644508336200,4.43,112.92,112.75,23.0605]
[1644508336201,4.431,112.87,112.75,23.0605]
[1644508336400,47.84333448,112.9,112.77,0.024]
[1644508336602,4.432,112.86,112.74,6.024]
[1644508336800,13.3026,112.84,112.75,0.024]
[1644508337002,10.67,112.9,112.75,0.024]
[1644508337003,1.25843448,112.9,112.77,45.10941364]
[1644508337205,4.431,112.92,112.78,10.67]
[1644508337404,4.431,112.92,112.79,34.60740204]
[1644508337701,4.43,112.94,112.81,43.83051399]
[1644508337902,4.43,112.91,112.81,43.83051399]
[1644508338101,5.68743448,112.94,112.81,43.83051399]
[1644508338801,13.2964,112.89,112.81,43.83051399]
[1644508339203,1.25843448,112.94,112.81,54.50051399]
[1644508339403,1.25843448,112.95,112.81,54.50051399]
[1644508339602,4.429,112.94,112.81,54.50051399]
[1644508340002,1.25843448,112.95,112.82,96.27108424]
[1644508340206,1.25843448,112.98,112.84,90.17]
[1644508340402,1.25843448,112.99,112.85,57.2222025]
[1644508340613,1.25843448,112.99,112.86,10.67]
[1644508340811,1.25843448,113.0,112.87,41.78676861]
[1644508341013,1.25843448,113.0,112.88,10.67]
[1644508341014,4.426,112.99,112.88,10.67]
[1644508341213,4.426,112.99,112.89,43.44068945]
[1644508341413,3.48965602,112.99,112.86,10.67]
[1644508341611,3.48965602,112.98,112.85,10.67]
[1644508342012,4.428,112.97,112.85,10.67]
[1644508342414,1.25843448,112.98,112.88,0.3170941]
[1644508342613,1.25843448,112.98,112.9,44.69516451]
[1644508342811,1.25843448,113.02,112.91,10.67]
[1644508343017,1.25843448,112.99,112.88,10.67]
[1644508343214,1.25843448,112.99,112.86,57.4066]
[1644508343413,5.68443448,112.98,112.86,10.67]
[1644508343611,13.2925,112.94,112.81,26.3592]
[1644508343814,3.48965602,112.98,112.83,42.21432277]
[1644508343815,1.25843448,112.96,112.83,42.21432277]
[1644508344111,1.25843448,112.96,112.81,13.2925]
[1644508344112,7.349,112.94,112.81,10.67]
[1644508344310,7.349,112.94,112.8,24.4907]
[1644508344511,6.66022154,112.93,112.79,0.024]
[1644508344712,17.33022154,112.93,112.78,0.024]
[1644508344913,2.23122154,112.92,112.77,0.024]
[1644508345114,51.82505602,112.92,112.75,64.11702901]
[1644508345314,1.25843448,112.92,112.79,51.77230331]
[1644508345513,4.431,112.91,112.79,37.18697131]
[1644508345712,13.2995,112.88,112.79,37.16297131]
[1644508346313,5.68943448,112.91,112.8,10.67]
[1644508346512,1.25843448,112.93,112.81,46.03322957]
[1644508346712,1.25843448,112.93,112.79,0.024]
[1644508346910,1.25843448,112.92,112.78,0.024]
[1644508347311,4.43,112.91,112.78,0.024]
[1644508347511,1.25843448,112.92,112.79,10.67]
[1644508347715,13.2972,112.89,112.8,35.70160896]
[1644508348112,1.25843448,112.92,112.78,10.694]
[1644508348312,1.25843448,112.92,112.77,47.3463]
[1644508348313,6.66222154,112.88,112.77,0.024]
[1644508348614,1.25843448,112.9,112.78,0.024]
[1644508348812,1.25843448,112.89,112.74,31.39474202]
[1644508349014,4.432,112.89,112.75,0.024]
[1644508349215,5.68943448,112.91,112.77,36.48960709]
[1644508349412,5.68943448,112.91,112.77,36.51360709]
[1644508349814,1.25843448,112.91,112.78,4.431]
[1644508350014,1.25843448,112.92,112.79,41.32838271]
[1644508350216,1.25843448,112.93,112.8,4.43]
[1644508350414,1.25843448,112.92,112.81,43.24345002]
[1644508350817,24.4619,112.94,112.81,43.24345002]
[1644508350818,1.25843448,112.93,112.81,43.24345002]
[1644508351015,13.2964,112.9,112.81,43.49345002]
[1644508351416,50.00993448,112.93,112.81,43.49345002]
[1644508351616,48.7515,112.93,112.81,43.49345002]
[1644508351814,48.7515,112.93,112.81,43.24345002]
[1644508352014,49.3543,112.96,112.82,10.67]
[1644508352015,1.25843448,112.95,112.82,10.67]
[1644508352215,1.25843448,112.95,112.83,36.78529008]
[1644508352418,4.429,112.94,112.83,36.78529008]
[1644508352614,1.25843448,112.95,112.83,36.78529008]
[1644508353215,1.25843448,112.95,112.83,42.78529008]
[1644508353416,1.25843448,112.95,112.83,43.03529008]
[1644508353619,13.2928,112.93,112.83,42.78529008]
[1644508353819,1.25843448,112.95,112.83,49.1237001]
[1644508354018,50.61273448,112.96,112.83,59.7937001]
[1644508354219,50.61273448,112.96,112.83,55.1147001]
[1644508354418,50.61273448,112.96,112.83,53.45529008]
[1644508354918,50.61273448,112.96,112.83,55.3647001]
[1644508355421,50.61273448,112.96,112.83,53.45529008]
[1644508355819,13.2916,112.94,112.83,66.74559008]
[1644508356022,13.2916,112.94,112.83,68.39246546]
[1644508356219,1.25843448,112.97,112.83,68.64246546]
[1644508356419,1.25843448,112.97,112.84,4.428]
[1644508356620,1.25843448,112.97,112.85,50.98073344]
[1644508356819,1.25843448,112.97,112.85,72.16340882]
[1644508357018,1.25843448,112.99,112.85,72.16340882]
[1644508357219,1.25843448,112.98,112.86,4.426]
[1644508357418,1.25843448,112.98,112.87,44.23984467]
[1644508357820,1.25843448,112.98,112.87,50.23984467]
[1644508358023,1.25843448,112.99,112.87,50.23984467]
[1644508358420,1.25843448,112.99,112.87,44.23984467]
[1644508358821,13.2879,112.97,112.87,44.23984467]
[1644508359124,13.2879,112.97,112.87,50.23984467]
[1644508360127,14.54413448,112.99,112.87,50.23984467]
[1644508360324,14.54413448,112.99,112.88,10.67]
[1644508360526,14.54413448,112.99,112.89,47.49925836]
[1644508360527,13.2857,112.99,112.89,47.49925836]
[1644508360928,13.2857,112.99,112.88,10.67]
[1644508361126,13.2909,112.95,112.85,57.7211]
[1644508361332,13.2909,112.95,112.85,10.67]
[1644508361925,13.2909,112.95,112.86,35.80929174]
[1644508362325,13.2913,112.94,112.85,10.67]
[1644508362925,48.7379,112.96,112.83,24.216]
[1644508363128,45.56833448,112.96,112.83,24.216]
[1644508363428,45.56833448,112.96,112.84,38.82902149]
[1644508363627,4.428,112.95,112.82,10.67]
[1644508363828,4.428,112.95,112.79,10.67]
[1644508364029,1.25843448,112.93,112.79,10.67]
[1644508364228,53.02545602,112.94,112.79,10.67]
[1644508364434,5.68843448,112.93,112.79,10.67]
[1644508364628,13.2963,112.9,112.8,42.36407515]
[1644508365128,55.22423448,112.94,112.8,42.36407515]
[1644508365327,55.22423448,112.94,112.8,48.36407515]
[1644508365532,55.22423448,112.94,112.81,10.67]
[1644508365729,13.2941,112.92,112.82,38.48472596]
[1644508366327,50.79423448,112.94,112.82,38.48472596]
[1644508366527,4.429,112.93,112.82,38.48472596]
[1644508366950,50.00533448,112.93,112.82,38.48472596]
[1644508367750,1.25843448,112.92,112.82,38.48472596]
[1644508367953,44.3255,112.91,112.79,56.3918]
[1644508368153,50.01393448,112.91,112.79,56.3678]
[1644508368354,45.58393448,112.91,112.79,56.3678]
[1644508368952,45.58393448,112.91,112.8,38.5882674]
[1644508369150,44.3255,112.91,112.8,38.5882674]
[1644508369351,1.25843448,112.92,112.8,40.23514278]
[1644508369553,1.25843448,112.93,112.81,4.43]
[1644508369752,1.25843448,112.94,112.82,58.14227982]
[1644508370859,1.25843448,112.94,112.79,0.024]
[1644508371054,1.25843448,112.92,112.78,0.024]
[1644508371254,1.25843448,112.91,112.78,0.024]
[1644508371454,1.25843448,112.91,112.77,16.92]
[1644508371455,1.25843448,112.92,112.77,6.274]
[1644508371653,1.25843448,112.92,112.79,10.67]
[1644508371854,13.2967,112.89,112.8,44.61919143]
[1644508372054,45.58653448,112.91,112.8,44.61919143]
[1644508372254,45.58653448,112.91,112.79,10.67]
[1644508372456,3.48965602,112.91,112.78,0.024]
[1644508372655,3.48965602,112.91,112.77,10.67]
[1644508372656,1.25843448,112.9,112.77,10.694]
[1644508372856,13.3003,112.86,112.77,16.694]
[1644508373055,1.25843448,112.9,112.78,0.024]
[1644508373255,1.25843448,112.9,112.78,47.05056003]
[1644508373457,1.25843448,112.91,112.78,47.05056003]
[1644508373655,1.25843448,112.91,112.78,53.07456003]
[1644508374059,1.25843448,112.91,112.78,63.74456003]
[1644508374258,1.25843448,112.9,112.78,63.74456003]
[1644508374456,1.25843448,112.9,112.78,63.72056003]
[1644508374656,13.2965,112.9,112.78,78.91443541]
[1644508375658,13.2969,112.89,112.78,77.66443541]
[1644508375858,50.01693448,112.91,112.78,76.04156003]
[1644508376060,1.25843448,112.9,112.78,77.66443541]
[1644508376257,45.58593448,112.91,112.79,4.431]
[1644508376463,4.431,112.89,112.8,37.09080909]
[1644508376658,45.58593448,112.91,112.8,37.09080909]
[1644508376659,5.68843448,112.9,112.8,37.09080909]
[1644508377360,5.68843448,112.9,112.78,13.321]
[1644508377563,13.2989,112.87,112.77,0.024]
[1644508377761,51.3662,112.89,112.76,17.7299]
[1644508377959,1.25843448,112.88,112.76,4.455]
[1644508378160,2.23122154,112.86,112.73,114.3]
[1644508378459,4.432,112.85,112.73,114.3]
[1644508378661,4.432,112.85,112.7,45.7568]
[1644508378662,13.3029,112.83,112.74,13.3012]
[1644508378860,4.433,112.82,112.74,13.3012]
[1644508379059,13.3029,112.83,112.74,13.3012]
[1644508379358,1.25843448,112.86,112.74,13.3012]
[1644508379558,1.25843448,112.86,112.75,48.31233637]
[1644508379759,4.433,112.86,112.75,48.31233637]
[1644508379960,17.7336,112.86,112.75,61.61273637]
[1644508380158,13.3006,112.86,112.75,61.61273637]
[1644508380361,1.25843448,112.88,112.75,67.11273637]
[1644508380559,5.69043448,112.9,112.76,4.432]
[1644508380763,5.68943448,112.91,112.77,46.96208869]
[1644508380960,80.05753448,112.92,112.77,51.39308869]
[1644508381163,78.7991,112.92,112.77,57.64308869]
[1644508381363,80.05753448,112.92,112.77,57.64308869]
[1644508381561,80.05753448,112.92,112.77,104.08438869]
[1644508382663,13.2962,112.9,112.79,60.19959594]
[1644508382863,1.25843448,112.93,112.81,44.61253105]
[1644508383062,1.25843448,112.95,112.81,55.28253105]
[1644508383262,1.25843448,112.96,112.83,38.54574681]
[1644508383561,1.25843448,112.97,112.83,38.54574681]
[1644508383768,13.2907,112.95,112.84,10.67]
[1644508383965,13.2907,112.95,112.85,43.21359925]
[1644508384163,13.2907,112.95,112.86,10.67]
[1644508384363,13.2907,112.95,112.87,44.33205657]
[1644508384562,13.2907,112.95,112.88,10.67]
[1644508384761,45.56083448,112.97,112.85,10.67]
[1644508385164,13.2925,112.93,112.85,10.67]
[1644508385363,1.25843448,112.95,112.85,10.67]
[1644508385563,2.23122154,112.93,112.82,37.31644287]
[1644508385764,2.23122154,112.93,112.74,102.07039193]
[1644508385765,130.0,112.91,112.74,102.07039193]
[1644508385967,130.0,112.91,112.67,1.49029993]
[1644508385968,7.91505678,112.81,112.67,1.49029993]
[1644508386164,0.75509227,112.7,112.67,1.49029993]
[1644508386374,5.0,112.69,112.59,211.97035258]
[1644508386771,133.42,112.66,112.59,211.97035258]
[1644508386966,133.42,112.62,112.5,2.44449421]
[1644508387168,133.42,112.59,112.49,7.0]
[1644508387370,133.42,112.58,112.51,13.3131]
[1644508387575,133.42,112.57,112.51,12.3131]
[1644508387782,133.42,112.57,112.47,0.47864995]
[1644508387783,137.862,112.57,112.47,0.47864995]
[1644508387970,133.74307753,112.55,112.47,0.47864995]
[1644508388167,4.444,112.54,112.47,0.00864995]
[1644508388471,3.67776115,112.51,112.29,2.45003981]
[1644508388668,133.42,112.49,112.44,0.00493725]
[1644508388972,133.42,112.46,112.28,0.44514318]
[1644508389168,148.8095771,112.48,112.26,4.318e-05]
[1644508389169,44.0,112.4,112.26,4.318e-05]
[1644508389371,3.37,112.4,112.27,12.8647416]
[1644508389571,3.37,112.41,112.27,12.8647416]
[1644508389770,15.12,112.4,112.26,4.318e-05]
[1644508389980,22.605,112.4,112.27,13.31762583]
[1644508390173,11.935,112.4,112.26,4.318e-05]
[1644508390569,10.67,112.39,112.28,1.61010546]
[1644508390870,4.45,112.38,112.28,1.61010546]
[1644508391069,10.67,112.37,112.28,1.61010546]
[1644508391270,10.67,112.37,112.26,4.318e-05]
[1644508391472,4.45,112.36,112.26,4.318e-05]
[1644508391671,4.45,112.39,112.26,4.318e-05]
[1644508392074,44.0,112.38,112.21,6.79239337]
[1644508392270,10.67,112.38,112.24,1.58566736]
[1644508392471,4.452,112.37,112.27,1.58566736]
[1644508392671,10.67,112.36,112.27,1.58566736]
[1644508392872,10.67,112.36,112.22,1.58566736]
[1644508393270,4.45,112.39,112.22,17.3973722]
[1644508393572,4.45,112.39,112.23,7.55869982]
[1644508393770,15.12,112.39,112.23,1.60966736]
[1644508394073,4.45,112.39,112.24,0.024]
[1644508394269,4.45,112.39,112.24,1.58566736]
[1644508394471,4.7,112.39,112.25,0.024]
[1644508394669,10.67,112.38,112.2,0.024]
[1644508394869,10.67,112.38,112.2,4.452]
[1644508395071,4.452,112.37,112.21,0.024]
[1644508395272,10.67,112.36,112.21,0.024]
[1644508395973,10.67,112.36,112.18,10.97500362]
[1644508396171,7.485,112.4,112.23,0.32107385]
[1644508396373,7.485,112.4,112.28,0.45]
[1644508396579,7.485,112.4,112.27,0.77459301]
[1644508396781,7.485,112.4,112.33,0.30377686]
[1644508397275,7.485,112.4,112.33,1.59130698]
[1644508397474,7.485,112.4,112.3,15.143]
[1644508397675,7.485,112.4,112.3,10.67]
[1644508397878,4.45,112.39,112.29,4.449]
[1644508398076,4.45,112.39,112.25,0.024]
[1644508398279,15.12,112.39,112.27,0.024]
[1644508398574,15.12,112.39,112.25,0.024]
[1644508398777,15.12,112.39,112.17,10.67]
[1644508398778,0.25,112.33,112.21,0.024]
[1644508398974,4.453,112.32,112.18,0.024]
[1644508399377,7.485,112.4,112.18,0.024]
[1644508399378,10.67,112.37,112.18,19.49904979]
[1644508399576,10.67,112.38,112.19,39.19112837]
[1644508399780,7.735,112.4,112.19,39.19112837]
[1644508399781,4.453,112.36,112.2,0.024]
[1644508399976,10.67,112.38,112.2,0.024]
[1644508400279,15.122,112.37,112.19,0.024]
[1644508400476,10.67,112.36,112.21,0.024]
[1644508400675,7.485,112.4,112.24,0.31281579]
[1644508400676,15.123,112.39,112.24,0.31281579]
[1644508400884,4.452,112.35,112.21,0.024]
[1644508401079,10.99037268,112.34,112.09,3.976]
[1644508401276,15.123,112.34,112.11,4.453]
[1644508401477,4.455,112.37,112.17,9.39674772]
[1644508401680,4.454,112.39,112.18,10.67]
[1644508401884,4.453,112.43,112.23,0.31810299]
[1644508402078,4.45,112.46,112.24,15.12]
[1644508402276,28.5107,112.47,112.25,44.12732989]
[1644508402476,28.5107,112.47,112.27,48.54485288]
[1644508402677,28.5107,112.47,112.29,46.48643225]
[1644508402978,28.5107,112.47,112.3,10.67]
[1644508403176,45.43020421,112.47,112.3,10.67]
[1644508403377,72.40892379,112.47,112.3,10.67]
[1644508403578,48.34822379,112.47,112.27,4.449]
[1644508403782,10.14602191,112.46,112.27,4.449]
[1644508404078,0.31139201,112.42,112.17,24.7867]
[1644508404285,0.25,112.31,112.17,24.7867]
[1644508404582,4.454,112.3,112.17,10.67]
[1644508404778,4.454,112.3,112.18,35.45887806]
[1644508404980,0.25,112.31,112.19,10.67]
[1644508405578,4.454,112.3,112.19,10.67]
[1644508405784,3.37,112.37,112.19,10.67]
[1644508405980,4.453,112.36,112.19,10.67]
[1644508406180,4.453,112.36,112.2,36.65199524]
[1644508406381,28.1847,112.39,112.22,44.7315783]
[1644508406582,28.1847,112.39,112.23,10.67]
[1644508406781,23.7317,112.39,112.24,35.88991739]
[1644508407084,23.7317,112.39,112.19,4.45]
[1644508407085,3.95,112.38,112.19,4.45]
[1644508407280,23.7317,112.39,112.21,4.45]
[1644508407481,23.7317,112.39,112.22,10.67]
[1644508407682,4.452,112.38,112.23,10.67]
[1644508407881,6.68322154,112.38,112.24,42.52012948]
[1644508408182,4.702,112.38,112.24,53.19012948]